Cogmind - Beta 14 @@@ ROGUE MODE // 2024.08.07 @ 15:57:49 Player: jimmyl Result: Destroyed by exploding Power Conduit Performance ------------- Evolutions (4) 2000 Regions Visited (7) 1400 Robots Destroyed (79) 395 Value Destroyed (3147) 3147 Prototype IDs (27) 540 Alien Tech Used (0) 0 Bonus (596) 596 TOTAL SCORE: 8078 Bonus ------- High Alert Combat Kills 196 Follower Combat Kills 115 Aligned with FarCom 300 Friendly Fire -15 Cogmind --------- Core Integrity 0/850 Matter 300/300 Energy 100/100 System Corruption 18% Temperature Cool (48) Movement Core (50) Location -6/Factory Parts ------- > --- POWER (1) -------- (None) > --- PROPULSION (4) --- (None) > --- UTILITY (7) ------ Advanced Visual Processing Unit Signal Interpreter Core Analyzer Armor Integrity Analyzer > --- WEAPON (3) ------- (None) > --- INVENTORY (5) ---- Hardened Heavy Armor Plating Peak State ------------ > --- POWER ------------ Improved Deuterium Engine > --- PROPULSION ------- Armored Treads Medium Treads Armored Huge Wheel > --- UTILITY ---------- Improved Heat Sink Improved Heat Sink Advanced Visual Processing Unit Signal Interpreter Advanced Targeting Computer Core Analyzer Armor Integrity Analyzer > --- WEAPON ----------- Latent Energy Streamer Plasma Cannon Plasma Cannon > --- INVENTORY -------- Hardened Heavy Armor Plating Plasma Cannon [Rating: 59] Favorites ----------- Power Improved Deuterium Engine Engine Improved Deuterium Engine Power Core Nuclear Core Propulsion Armored Treads Treads Armored Treads Leg Aluminum Leg Wheel Armored Huge Wheel Hover Unit Linear Gravjet Utility Signal Interpreter Device ECM Suite Storage Small Storage Unit Processor Signal Interpreter Protection Improved Propulsion Shielding Weapon Plasma Cannon Energy Gun Arc Projector Energy Cannon Plasma Cannon Ballistic Gun Light Assault Rifle Ballistic Cannon Flak Cannon Launcher Heavy Missile Launcher Impact Weapon Great Maul Slashing Weapon Chainsword Build | -11 -10 -10 -10 -9 -8 -7 -6 ------- Run | Yrd Mat Min Exi Min Mat Fac Fac Slots Evolved 8 | . . . . . 4 2 2 Power . | . . . . . . . . Propulsion 2 | . . . . . . 1 1 Utility 5 | . . . . . 4 1 . Weapon 1 | . . . . . . . 1 Parts Attached 76 | . 4 . . 5 7 39 21 Power 10 | . . . . 1 1 3 5 Engine 7 | . . . . 1 . 1 5 Core 3 | . . . . . 1 2 . Reactor . | . . . . . . . . Propulsion 13 | . . . . 2 1 6 4 Treads 10 | . . . . 2 1 3 4 Leg . | . . . . . . . . Wheel 2 | . . . . . . 2 . Hover 1 | . . . . . . 1 . Flight . | . . . . . . . . Utility 25 | . 1 . . . 5 14 5 Device 10 | . . . . . 1 6 3 Storage . | . . . . . . . . Processor 8 | . 1 . . . 1 5 1 Hackware . | . . . . . . . . Protection 7 | . . . . . 3 3 1 Artifact . | . . . . . . . . Weapon 28 | . 3 . . 2 . 16 7 Energy Gun 2 | . 1 . . 1 . . . Energy Cannon 10 | . 2 . . 1 . 1 6 Ballistic Gun . | . . . . . . . . Ballistic Cannon 4 | . . . . . . 4 . Launcher 6 | . . . . . . 5 1 Special Weapon . | . . . . . . . . Impact Weapon 4 | . . . . . . 4 . Slashing Weapon 2 | . . . . . . 2 . Piercing Weapon . | . . . . . . . . Special Melee Weapon . | . . . . . . . . Unidentified Prototypes 2 | . . . . . . 1 1 Parts Lost 28 | . . . . . . 12 16 Power 4 | . . . . . . 1 3 Propulsion 7 | . . . . . . 3 4 Utility 10 | . . . . . . 4 6 Weapon 7 | . . . . . . 4 3 Highest Loss Streak 4 | . . . . . . 3 4 To Critical Strikes . | . . . . . . . . Average Slot Usage (%) 85 | . 98 100 100 100 90 85 76 Engine 4 | . 14 14 14 14 2 . 5 Core 3 | . . . . . 6 6 . Treads 8 | . . . . 19 18 8 10 Leg 4 | . 28 28 28 8 . . . Wheel 2 | . . . . . . 4 2 Device 6 | . . . . . 2 9 4 Storage 6 | . 14 14 14 14 9 7 2 Processor 23 | . 12 14 14 14 17 22 32 Protection 5 | . . . . . 15 8 2 Energy Gun 3 | . 13 14 14 14 9 . . Energy Cannon 6 | . 10 14 14 14 9 3 8 Ballistic Cannon 1 | . . . . . . 4 . Impact Weapon 1 | . . . . . . 3 . Slashing Weapon 1 | . . . . . . . 5 Peak Build Rating 59 | . 9 9 10 18 33 45 59 Average Rating 32 | . 8 9 9 15 27 35 42 On Entrance 16 | 6 6 9 9 10 18 33 41 Naked Turns . | . . . . . . . . Heaviest Build 48 | 11 16 15 15 21 30 48 36 Greatest Support 60 | 20 20 20 20 48 48 48 60 Greatest Overweight (x) 2 | . . . . . . 1 2 Average Overweight (x) . | . . . . . . . . Largest Inventory Capacity 8 | . 8 8 8 8 8 8 8 Average Capacity 7 | . 8 8 8 8 8 8 6 Most Carried 8 | . 8 8 8 8 8 8 8 Average Carried 6 | . 7 8 7 7 7 7 4 Final Capacity 8 | 8 8 8 8 8 8 8 5 Final Carried 8 | 6 8 8 8 8 8 8 2 Class Distribution -------------------- 94% | Mutant 3% | Gunner Dominant Class ---------------- Mutant | -10/Materials Mutant | -10/Mines Mutant | -10/Exiles Mutant | -9/Mines Mutant | -8/Materials Mutant | -7/Factory Mutant | -6/Factory Resources | -11 -10 -10 -10 -9 -8 -7 -6 ----------- Run | Yrd Mat Min Exi Min Mat Fac Fac Matter Collected 1373 | 200 63 . . . 106 503 501 Remotely . | . . . . . . . . Salvage Created 3096 | . 528 . . . 81 772 1715 Parts 136 | . 28 . . . 5 36 67 Haulers Intercepted . | . . . . . . . . Recyclers Shooed 7 | . . . . . . 1 6 Parts Field Recycled . | . . . . . . . . Retrieved Matter . | . . . . . . . . Parts Self-Destructed . | . . . . . . . . Prevented . | . . . . . . . . Kills | -11 -10 -10 -10 -9 -8 -7 -6 ------- Run | Yrd Mat Min Exi Min Mat Fac Fac Combat Hostiles Destroyed 66 | . 8 . . . 1 26 31 Melee 5 | . . . . . . 4 1 Guns 4 | . 4 . . . . . . Cannons 25 | . 3 . . . . 6 16 AOE 24 | . 1 . . . . 14 9 Classes Destroyed 14 | . 6 . . . 1 4 3 Worker 2 | . . . . . . 1 1 Builder 1 | . 1 . . . . . . Tunneler 1 | . . . . . . 1 . Recycler 4 | . 2 . . . . 1 1 Mechanic 2 | . 1 . . . . 1 . Watcher 3 | . 1 . . . 1 . 1 Swarmer 21 | . 3 . . . . 13 5 Grunt 21 | . 5 . . . . 4 12 Duelist 1 | . . . . . . . 1 Sentry 8 | . . . . . . 5 3 Specialist 4 | . . . . . . . 4 Hunter 4 | . . . . . 1 1 2 Programmer 6 | . . . . . . 3 3 Heavy 1 | . . . . . . . 1 Best Kill Streak 8 | . 6 . . . 1 4 8 Combat Bots Only 8 | . 3 . . . 1 3 8 Max Kills in Single Turn 3 | . 1 . . . 1 3 3 Gunslinging . | . . . . . . . . Exploded 3 | . 1 . . . . 3 3 Melee 1 | . . . . . . 1 1 Uniques/NPCs Destroyed . | . . . . . . . . Combat | -11 -10 -10 -10 -9 -8 -7 -6 -------- Run | Yrd Mat Min Exi Min Mat Fac Fac Hostile Shots Fired 561 | . 36 . . . 8 310 207 Missed 168 | . 9 . . . 5 94 60 Damage Taken 5662 | . 290 . . 34 54 2349 2935 Core 1205 | . 58 . . 17 . 257 873 Absorbed by Shields . | . . . . . . . . Redirected to Shielding 161 | . . . . . . 161 . Ignored by Resistances 381 | . . . . . . 226 155 Core Remaining (%) 83 | 100 . . . 70 100 63 . Volleys Fired 151 | . 38 . . . 6 47 60 Largest 3 | . 2 . . . 2 2 3 Hottest 245 | . 136 . . . 135 135 245 Shots Fired 270 | . 76 . . . 12 80 102 Gun 70 | . 60 . . . 6 4 . Cannon 184 | . 16 . . . 6 64 98 Launcher 16 | . . . . . . 12 4 Special . | . . . . . . . . Kinetic 55 | . 23 . . . . 32 . Thermal 158 | . 30 . . . 6 32 90 Explosive 16 | . . . . . . 12 4 Electromagnetic 41 | . 23 . . . 6 4 8 Robot Hit Streak 12 | . 8 . . . 4 12 9 Robot Miss Streak 5 | . 4 . . . 1 5 3 Penetration Max . | . . . . . . . . Secondary Targets . | . . . . . . . . Shots Hit Robots 191 | . 45 . . . 8 65 73 Core Hits 140 | . 20 . . . 4 51 65 Critical Kills 3 | . . . . . 1 2 . Critical Parts Destroyed 4 | . . . . . . 4 . Critical Strikes 7 | . . . . . 1 6 . Meltdown 1 | . . . . . 1 . . Smash 6 | . . . . . . 6 . Melee Attacks 46 | . . . . . . 40 6 Impact 40 | . . . . . . 40 . Slashing 6 | . . . . . . . 6 Piercing . | . . . . . . . . Sneak Attacks 4 | . . . . . . 2 2 Combat Hostiles 1 | . . . . . . 1 . Follow-up Attacks . | . . . . . . . . Damage Inflicted 8920 | . 737 . . . 172 3533 4478 Guns 489 | . 430 . . . 47 12 . Cannons 3236 | . 245 . . . 76 1070 1845 Explosions 3993 | . 58 . . . 48 1484 2403 Melee 1138 | . . . . . . 946 192 Ramming 64 | . 4 . . . 1 21 38 Kinetic 682 | . 94 . . . . 588 . Thermal 2833 | . 419 . . . 124 482 1808 Explosive 2689 | . . . . . . 1484 1205 Electromagnetic 1514 | . 220 . . . 47 12 1235 Impact 946 | . . . . . . 946 . Slashing 192 | . . . . . . . 192 Piercing . | . . . . . . . . Highest Corruption 18 | . . . . . . 8 18 Average Corruption 8 | . . . . . . 5 17 Corruption Purged . | . . . . . . . . Corruption Blocked . | . . . . . . . . Effects 134 | . . . . . . 67 67 Message Errors 29 | . . . . . . 14 15 Matter Fused 24 | . . . . . . 12 12 Heat Flow Errors 14 | . . . . . . 8 6 Energy Discharges 15 | . . . . . . 8 7 Parts Rejected 3 | . . . . . . . 3 Data Loss (minor) 25 | . . . . . . 16 9 Data Loss (major) 5 | . . . . . . 4 1 Misfires 5 | . . . . . . 3 2 Alerts 4 | . . . . . . 2 2 Misdirections 3 | . . . . . . . 3 Weapon Failures 7 | . . . . . . . 7 Overload Shots . | . . . . . . . . Overflow Damage 503 | . . . . . . 436 67 Projectiles 7 | . . . . . . 7 . Explosions 176 | . . . . . . 109 67 Melee 320 | . . . . . . 320 . Knockbacks 12 | . . . . . . 12 . Impact 3 | . . . . . . 3 . Kinetic 9 | . . . . . . 9 . Secondary . | . . . . . . . . Self-Inflicted Damage 45 | . . . . . 29 13 3 Shots 2 | . . . . . 1 1 . Rammed 19 | . . . . . 1 7 11 Targets Rammed 22 | . 3 . . . 1 7 11 Kicked 3 | . 3 . . . . . . Crushed . | . . . . . . . . Highest Temperature 443 | . 360 . . . 126 443 435 Average Temperature 109 | . 76 . . . 52 130 118 Received Heat Transfer 1200 | . 108 . . . . 498 594 Effects 14 | . . . . . . 6 8 Shutdowns 3 | . . . . . . 1 2 Energy Bleed 2 | . . . . . . 2 . Interference 8 | . . . . . . 3 5 Matter Decay 1 | . . . . . . . 1 Siege Activations . | . . . . . . . . Robots Corrupted 8 | . . . . . . 3 5 Combat Hostiles 7 | . . . . . . 2 5 Parts Fried 15 | . 1 . . . . 4 10 Impact Corruptions 11 | . . . . . . 11 . Robots Melted 1 | . . . . . 1 . . Combat Hostiles 1 | . . . . . 1 . . Parts Melted 12 | . 2 . . . 1 . 9 Heat Transferred 4943 | . 790 . . . 200 900 3053 Parts Sabotaged . | . . . . . . . . Parts Stolen . | . . . . . . . . Parts Stripped . | . . . . . . . . Power Chain Reactions 2 | . 1 . . . 1 . . Latent Energy Used 928 | . . . . . . . 928 LE Corruption 17 | . . . . . . . 17 Alert | -11 -10 -10 -10 -9 -8 -7 -6 ------- Run | Yrd Mat Min Exi Min Mat Fac Fac Peak Influence 627 | . 252 61 . . 191 380 627 Initial 95 | . . 61 . . . . 95 Average 176 | . 133 61 . . 98 97 345 Maximum Alert Level 2 | . 1 . . . . 1 2 Low Security (%) 66 | . 74 100 . 100 100 80 32 Level 1 17 | . 25 . . . . 19 18 Level 2 15 | . . . . . . . 48 Level 3 . | . . . . . . . . Level 4 . | . . . . . . . . Level 5 . | . . . . . . . . High Security . | . . . . . . . . Max Security . | . . . . . . . . Squads Dispatched 24 | . 2 . . . . 11 11 Investigation 4 | . 1 . . . . 2 1 Extermination 6 | . . . . . . 4 2 Reinforcement 8 | . 1 . . . . 2 5 Assault . | . . . . . . . . Garrison 6 | . . . . . . 3 3 Intercept . | . . . . . . . . Searches Triggered . | . . . . . . . . Construction Impeded 2 | . . . . . . 1 1 Haulers Reinforced . | . . . . . . . . Active Scanning Responses . | . . . . . . . . Cargo Convoy Interrupts 1 | . . . . . . . 1 Stealth | -11 -10 -10 -10 -9 -8 -7 -6 --------- Run | Yrd Mat Min Exi Min Mat Fac Fac Distress Signals 6 | . 1 . . . . 2 3 Communications Jammed . | . . . . . . . . Distress Signals . | . . . . . . . . Times Spotted 100 | . 15 . . . 4 36 45 Peak Tracking Total 7 | . 4 . . . 1 4 7 Tactical Retreats 10 | . . . . . . 6 4 Traps | -11 -10 -10 -10 -9 -8 -7 -6 ------- Run | Yrd Mat Min Exi Min Mat Fac Fac Traps Triggered 8 | . 1 . . 1 . 4 2 Indirectly . | . . . . . . . . Trap Hack Attempts . | . . . . . . . . Triggered . | . . . . . . . . Disarmed . | . . . . . . . . Reprogrammed . | . . . . . . . . Reused . | . . . . . . . . Traps Extracted . | . . . . . . . . Installed . | . . . . . . . . Triggered 3 | . 1 . . . . . 2 Machines | -11 -10 -10 -10 -9 -8 -7 -6 ---------- Run | Yrd Mat Min Exi Min Mat Fac Fac Machines Disabled 10 | . 3 . . . . 3 4 Max in Single Turn 1 | . 1 . . . . 1 1 Garrison Access 1 | . . . . . . 1 . Machines Repaired . | . . . . . . . . Machines Dismantled . | . . . . . . . . Machines Sabotaged . | . . . . . . . . Overloaded Fab Kills . | . . . . . . . . Hacking | -11 -10 -10 -10 -9 -8 -7 -6 --------- Run | Yrd Mat Min Exi Min Mat Fac Fac Machines Accessed 21 | . 2 . 1 1 1 12 4 Terminals 11 | . 2 . . . 1 7 1 Fabricators 3 | . . . . . . 2 1 Repair Stations . | . . . . . . . . Recycling Units . | . . . . . . . . Scanalyzers . | . . . . . . . . Garrison Access 5 | . . . . . . 3 2 Total Hacks 48 | . 4 . 1 1 1 35 6 Successful 15 | . 1 . 1 1 . 11 1 Failed 33 | . 3 . . . 1 24 5 Catastrophic 9 | . . . . . 1 5 3 Database Lockouts . | . . . . . . . . Manual 21 | . 4 . 1 . . 14 2 Terminals 28 | . 4 . . . 1 22 1 Fabricators 9 | . . . . . . 7 2 Repair Stations . | . . . . . . . . Recycling Units . | . . . . . . . . Scanalyzers . | . . . . . . . . Garrison Access 9 | . . . . . . 6 3 Terminal Hacks 8 | . 1 . 1 1 . 5 . Prototype ID Bank 1 | . . . . . . 1 . Open Door 1 | . . . . 1 . . . Alert Level 1 | . . . . . . 1 . Unreport Threat 1 | . . . . . . 1 . Locate Traps 2 | . . . . . . 2 . Hauler Manifests 1 | . 1 . . . . . . Derelict Proto ID Bank 1 | . . . 1 . . . . Fabricator Hacks 2 | . . . . . . 1 1 Network Status 2 | . . . . . . 1 1 Repair Station Hacks . | . . . . . . . . Recycling Unit Hacks . | . . . . . . . . Scanalyzer . | . . . . . . . . Garrison Access Hacks 1 | . . . . . . 1 . Seal Access 1 | . . . . . . 1 . Unauthorized Hacks 4 | . . . . . . 4 . Terminals 2 | . . . . . . 2 . Botnet 2 | . . . . . . 2 . Fabricators 2 | . . . . . . 2 . Liberate 2 | . . . . . . 2 . Repair Stations . | . . . . . . . . Recycling Units . | . . . . . . . . Scanalyzers . | . . . . . . . . Garrison Access . | . . . . . . . . Data Cores Recovered . | . . . . . . . . Used . | . . . . . . . . Hacking Detections 17 | . 2 . . . 1 10 4 Full Trace Events 1 | . . . . . . 1 . Feedback Events . | . . . . . . . . Feedback Blocked . | . . . . . . . . Robot Schematics Acquired . | . . . . . . . . Robots Built . | . . . . . . . . Authchips . | . . . . . . . . Time . | . . . . . . . . Total Robot Build Rating . | . . . . . . . . Part Schematics Acquired . | . . . . . . . . Parts Built . | . . . . . . . . Authchips . | . . . . . . . . Time . | . . . . . . . . Total Part Build Rating . | . . . . . . . . Parts Repaired . | . . . . . . . . Time . | . . . . . . . . Parts Recycled . | . . . . . . . . Recycled Matter . | . . . . . . . . Retrieved Matter . | . . . . . . . . Retrieved Components . | . . . . . . . . Parts Scanalyzed . | . . . . . . . . Part Schematics Acquired . | . . . . . . . . Parts Damaged . | . . . . . . . . Bothacking | -11 -10 -10 -10 -9 -8 -7 -6 ------------ Run | Yrd Mat Min Exi Min Mat Fac Fac Used RIF Installer . | . . . . . . . . Robots Hacked . | . . . . . . . . Non-combat . | . . . . . . . . Combat . | . . . . . . . . Robot Hacks Applied . | . . . . . . . . Relay Couplers Released . | . . . . . . . . Fabnet Peak Effective % . | . . . . . . . . Robots Rewired . | . . . . . . . . Allies Hacked . | . . . . . . . . Hacks Repelled . | . . . . . . . . Allies | -11 -10 -10 -10 -9 -8 -7 -6 -------- Run | Yrd Mat Min Exi Min Mat Fac Fac Total Allies 3 | . . . . 3 . . . Largest Group 3 | . . . . 3 3 2 . Highest-Rated Group 40 | . . . . 40 40 32 . Highest-Rated Ally 16 | . . . . 16 16 16 . Total Orders . | . . . . . . . . Ally Attacks 19 | . . . . . 13 6 . Total Damage 247 | . . . . . 159 88 . Kills 5 | . . . . . 5 . . Allies Corrupted . | . . . . . . . . Allies Melted . | . . . . . . . . Intel | -11 -10 -10 -10 -9 -8 -7 -6 ------- Run | Yrd Mat Min Exi Min Mat Fac Fac Robot Analysis Total . | . . . . . . . . Derelict Logs Recovered 1 | . . . . 1 . . . Drone Launches . | . . . . . . . . Drone Recoveries . | . . . . . . . . Exploration | -11 -10 -10 -10 -9 -8 -7 -6 ------------- Run | Yrd Mat Min Exi Min Mat Fac Fac Turns Passed 6779 | . 631 17 254 249 472 3073 2083 Spaces Moved 3880 | 1 406 15 211 154 264 1714 1115 Core 3 | . . . . . . . 3 Treads 1345 | . . . . 95 264 562 424 Legs 692 | 1 406 15 211 59 . . . Wheels 1840 | . . . . . . 1152 688 Hover . | . . . . . . . . Flight . | . . . . . . . . Fastest Speed 100 | 120 120 120 120 120 160 100 100 Average Speed 131 | 120 120 120 120 144 160 132 127 Slowest Speed 250 | 120 120 120 120 160 165 250 250 Overloaded Moves . | . . . . . . . . Propulsion Burnouts . | . . . . . . . . Robots Hopped . | . . . . . . . . Cave-ins Triggered . | . . . . . . . . Exploration Rate (%) 38 | 2 89 8 61 42 22 55 32 Regions Visited 7 Branch Regions 3 Pre-discovered Areas . | . . . . . . . . Known Exits Taken 3 | . . . . 1 1 1 . Unknown Exits Taken 4 | 1 1 1 1 . . . . Scrap Searched . | . . . . . . . . Spaces Dug 13 | . . . . . . 13 . Terrain Destroyed 218 | . . . . . 14 113 91 Melee 13 | . . . . . . 13 . Projectile 8 | . . . . . 3 1 4 AOE 197 | . . . . . 11 99 87 Terrain Rammed . | . . . . . . . . Walls Destroyed . | . . . . . . . . Machines Disabled . | . . . . . . . . Actions | -11 -10 -10 -10 -9 -8 -7 -6 --------- Run | Yrd Mat Min Exi Min Mat Fac Fac Total 5192 | . 479 14 212 181 298 2353 1655 Wait 960 | . 18 . . 15 16 480 431 Move 3873 | . 405 14 210 153 263 1713 1115 Hop . | . . . . . . . . Pick Up 20 | . 5 . 1 2 1 9 2 Fast Attach 48 | . 4 . . 3 6 20 15 Attach 17 | . . . . 1 . 10 6 Detach 4 | . . . . . . 3 1 Swap 11 | . . . . 1 1 9 . Drop 40 | . 6 . 1 6 4 15 8 Fire 151 | . 38 . . . 6 47 60 Melee 46 | . . . . . . 40 6 Ram 8 | . . . . . . 7 1 Kick 3 | . 3 . . . . . . Crush 11 | . . . . . 1 . 10 Escape Stasis . | . . . . . . . . Rewire . | . . . . . . . . Trap . | . . . . . . . . Miscellaneous . | . . . . . . . . Route ------- -11/Scrapyard -10/Materials (discovered 4 exits: [*Mat x2] / [*Min x2]) -10/Mines -10/Exiles -9/Mines (discovered 2 exits: *Mat x2) -8/Materials -7/Factory (discovered 2 exits: *Fac / *Low) -6/Factory (discovered 1 exit: [*Fac]) History --------- Turn | Location | Event 1 | -11/Scrapyard | Discovered new exit (range 0) 1 | -11/Scrapyard | Entered Materials 211 | -10/Materials | Discovered new exit (range 13) 286 | -10/Materials | Discovered new exit (range 10) 312 | -10/Materials | Build established: Mutant 442 | -10/Materials | Discovered new exit (range 4) 610 | -10/Materials | Discovered new exit (range 15) 632 | -10/Materials | Entered Mines 644 | -10/Mines | Deemed a non-threat by the Exiles lab entrance 644 | -10/Mines | Discovered new exit (range 5) 649 | -10/Mines | Entered Exiles 678 | -10/Exiles | Met 8R-AWN 700 | -10/Exiles | Met EX-HEX 736 | -10/Exiles | Met EX-BIN 754 | -10/Exiles | Aligned with FarCom system 755 | -10/Exiles | Given EX-Vault access code 783 | -10/Exiles | Opened EX-Vault 789 | -10/Exiles | Found Latent Energy Streamer 814 | -10/Exiles | Warned to stay clear of 0b10 Research branches 849 | -10/Exiles | Met EX-DEC 892 | -10/Exiles | Discovered new exit (range 10) 903 | -10/Exiles | Left Exiles lab with Latent Energy Streamer 903 | -10/Exiles | Entered Mines 906 | -9/Mines | Assisted by bots powering up and referring to "LRC-V3" 962 | -9/Mines | Met a Derelict who couldn't figure out how to use a Trap Extractor 1024 | -9/Mines | Identified exit to Materials 1121 | -9/Mines | Discovered exit to Materials (range 15) 1129 | -9/Mines | YI-UF0 nonchalantly dropped a Grenade Launcher on the ground 1152 | -9/Mines | Entered Materials 1152 | -8/Materials | Accompanied by 3 allies 1152 | -8/Materials | Evolved 4 slots: Utility x4 1578 | -8/Materials | Discovered new exit (range 10) 1621 | -8/Materials | Identified exit to Factory 1624 | -8/Materials | Entered Factory 1624 | -7/Factory | Accompanied by 2 allies 1624 | -7/Factory | Evolved 2 slots: Propulsion x1, Utility x1 3095 | -7/Factory | Discovered new exit (range 14) 3110 | -7/Factory | Identified exit to Lower Caves 3231 | -7/Factory | Lost 3 parts (2n1u) 4609 | -7/Factory | Discovered new exit (range 12) 4621 | -7/Factory | Identified exit to Factory 4697 | -7/Factory | Entered another Factory area 4697 | -6/Factory | Evolved 2 slots: Propulsion x1, Weapon x1 4945 | -6/Factory | Destroyed 8 combat bots 5132 | -6/Factory | Spotted B-75 Beast 5557 | -6/Factory | Garrison activated, responded to threat 5579 | -6/Factory | System corruption reached 10% 5988 | -6/Factory | Cargo convoy interrupted 6644 | -6/Factory | Lost 4 parts (1p2n1u) 6688 | -6/Factory | Discovered new exit (range 18) 6720 | -6/Factory | Core integrity fell below 50% 6780 | -6/Factory | Destroyed by exploding Power Conduit Last Messages --------------- 06736_ K-01 Serf cleans the Power Conduit. 06743_ SGLQTNPNPW5ZW 06751_ K-01 Serf cleans the Power Conduit. 06760_ Penetrated by Slug. 06760_ Lgt. Treads destroyed. 06760_ K-01 Serf cleans the Power Conduit. 06764_ Lgt. Treads destroyed. 06766_ K-01 Serf cleans the Power Conduit. 06768_ U-05 Engineer builds a Wall. 06769_ K-01 Serf cleans the Power Conduit. 06773_ System corrupted: Heat flow error (+203). 06775_ K-01 Serf collects debris. 06779_ K-01 Serf cleans the Power Conduit. 06780_ Power Conduit explodes. 06780_ H-61 Shepherd destroyed. 06780_ Plasma Cannon destroyed. 06780_ U-05 Engineer destroyed. 06780_ Power Conduit explodes. 06780_ U-05 Engineer destroyed. 06780_ K-01 Serf destroyed. Map ----- +----------------------------------------------------+ | ????????????? !! # #?????????# #??? | | ?????????????? !! # #?????????# #??? | | ?????????????? = # #?????????#+#??? | | ??????????????? # #??????????????? | | ??????????????????# # #?????????" ???? | | ??????????????????# ##+#+#####??????""" #? | | ??????????????????# #????! """ #? | | ??????????????????# #?? [! ## | | ??????????????????# # !! # | | ??????????????????# / "" #? | | ??????????????????# # "" #? | | ???????????? ???# #?? T" #? | | ?????????? ???# #???? "" #? | | ?????????# ???#### #############?????? "" ?? | | ?????????# ??????# #???????????????????? #? | | ?????????+ #?????# #??????????????????????###? | | ?????????# #?????# #?????????????????????????? | | ?????????# #######;;;;;;;##??????????????????? | | ?????????# # #??????????????????? | | ?????????# # k #??????????????????? | | ?????????# # #??????????????????? | | ?????????# # = #??????????????????? | | ?? ??????# # #??????????????????? | | ?? ?????# # %! #??????????????????? | | ?? ???# # #??????????????????? | | ??? ??# # % @ #??????????????????? | | ???? ?# # #??????????????????? | | ?????? # # #??????????????????? | | ??????? # # = #??????????????????? | | ???????? + + u #??????????????????? | | ?????????# ##/###;; #??????????????????? | | ?????????# %#?##### ##??????????????????? | | ?????????# w #??????????????????????????????? | | ?????????# % #??????????????????????????????? | | ?????????# """ x#??????????????????????????????? | | ?????????# """ #??????????????????????????????? | | ?????????# """ x #??????????????????????????????? | | ?????????# #??????????????????????????????? | | ?????????# """ #??????????????????????????????? | | ????????## """ #??????????????????????????????? | | ????????# """ #?##???????????????????????????? | | ######+## #T ###### #????????????????? | | %]]] #????????????????? | | ]]] < / ???????????????? | | ]]] #????????????????? | | ######+## % ######### #????????????????? | | ????????# """ #????????????##????????????????? | | ????????# """ #??????????????????????????????? | | ????????# """ #??????????????????????????????? | | ????????# #??????????????????????????????? | +----------------------------------------------------+ Best States ------------- Heat Dissipation 65 Energy Generation 18 Energy Capacity 310 Matter Stores 300 Matter Capacity 300 Sight Range 20 Terrain Scan Density 10 ECM Strength 3 Armor Coverage 225 Resistance: KI 30 Resistance: TH 20 Resistance: EX 25 Propulsion Shielding 66 Evasion (%) 55 Targeting Accuracy 8 Melee Accuracy 12 Core Analysis 6 Armor Integrity Analysis 30 Recoil Reduction 3 Matter Filtering 30 Item Schematics ----------------- None Robot Schematics ------------------ None Fabricated ------------ Nothing Alien Tech Used ----------------- None Achievements -------------- None Challenges ------------ None Game ------ Seed DrainedThrusterPerforator Manual? 0 Play Time 00:48:38 Cumulative 91.6 hours Start 2024.08.07 @ 15:16:18 End 2024.08.07 @ 15:57:49 Sessions 1 Manual Loads 0 Difficulty Rogue Special Mode None Game No. 158 Rogue 157 Adventurer 1 Explorer 0 Win Type - Total 0 Types 0/0/0/0/0/0/0/0/0 Lore% 53 Gallery% 59 Achievement% 47 Wizard Run 0 Options --------- Layout 1 ASCII 0 Keyboard 0 Movement Mouse Keybinds 0 Fullscreen 2 Font 20/SmallcapsGlow Map View 54x42 Zoom Use 0% Tactical HUD 1 Map Filters NONE Filters NONE Steam 0 RUN: 540286f8-18b4-4e02-b7b8-eb40e524a74b